Workbook

Sheet Sākums
B1: PAR ŠO VEIDNI
B2: Izmantojiet šo klientu ienesīguma analīze, lai izsekotu klientu aktivitāte, pārdošanas izmaksas un citas izmaksas.
B3: Tabulās ievadiet informāciju, piemēram, uzņēmuma nosaukums, datums un citu detalizētu informāciju.
B4: Vērtības šūnās ar formulām un rādītāju kopsavilkums vērtību tabulā tiek automātiski aprēķinātas un diagramma tiek atjaunināta.
B5: Piezīme.
B6: Papildu norādījumi ir sniegti kolonnā A darblapā KLIENTU IENESĪGUMS. Šis teksts ir paslēpts ar nolūku. Lai tekstu noņemtu, atlasiet kolonnu A, pēc tam atlasiet DZĒST. Lai parādītu slēpto tekstu, atlasiet kolonnu A, pēc tam nomainiet fonta krāsu.
B7: Lai iegūtu papildinformāciju par tabulām šajā darblapā, nospiediet taustiņu SHIFT un pēc tam F10 tabulā, atlasiet opciju TABULA un pēc tam atlasiet ALTERNATĪVAIS TEKSTS.

Sheet Klientu ienesīgums
A1: Šajā darblapā izveidojiet klientu ienesīguma analīze. Šīs kolonnas šūnās ir noderīgi norādījumi par to, kā lietot šo darblapu. Bultiņa uz leju, lai sāktu darbu.
A2: Šūnā pa labi ievadiet uzņēmuma nosaukums. | B2: Uzņēmuma nosaukums
A3: Šīs darblapas nosaukums ir šūnā pa labi. | B3: Klientu ienesīguma analīze
A4: Šūnā pa labi ievadiet datums. | B4: Datums
A5: Šūnā pa labi ir padoms. | B5: Pelēkās šūnas tiks aprēķinātas jūsu vietā. Nav nepieciešams tajās neko ievadīt.
A6: Ievadiet informāciju klientu aktivitāte tabulā, kas sākas šūnā pa labi. Nākamais norādījums ir šūnā A12. | B6: Klientu aktivitāte: | C6: Segmenta nosaukums 1 | D6: Segmenta nosaukums 2 | E6: Segmenta nosaukums 3 | F6: Kopā
B7: Aktīvo klientu skaits — perioda sākumā | C7: 5 | D7: 8 | E7: 8 | F7: =SUM(C7:E7) -> 21
B8: Pievienoto klientu skaits | C8: 2 | D8: 4 | E8: 4 | F8: =SUM(C8:E8) -> 10
B9: Zaudēto/pārtraukto klientu skaits | C9: -1 | D9: -2 | E9: -2 | F9: =SUM(C9:E9) -> -5
B10: Aktīvo klientu skaits — perioda beigās | C10: =SUBTOTAL(109,Klientu_aktivitāte[Segmenta nosaukums 1]) -> 6 | D10: =SUBTOTAL(109,Klientu_aktivitāte[Segmenta nosaukums 2]) -> 10 | E10: =SUBTOTAL(109,Klientu_aktivitāte[Segmenta nosaukums 3]) -> 10 | F10: =SUBTOTAL(109,Klientu_aktivitāte[Kopā]) -> 26
A12: Ievadiet informāciju ienesīguma analīze tabulā, kas sākas šūnā pa labi. Nākamais norādījums ir šūnā A16. | B12: Ienesīguma analīze: | C12: Segmenta nosaukums 1 | D12: Segmenta nosaukums 2 | E12: Segmenta nosaukums 3 | F12: Kopā
B13: Ieņēmumi segmentā | C13: 1,500,000.00 EUR | D13: 1,800,000.00 EUR | E13: 2,500,000.00 EUR | F13: =SUM(Ienesīguma_analīze[[#This Row],[Segmenta nosaukums 1]:[Segmenta nosaukums 3]]) -> 5,800,000.00 EUR
B14: Vērtēšana | C14: =+C13/$F$13 -> 26% | D14: =+D13/$F$13 -> 31% | E14: =+E13/$F$13 -> 43% | F14: =SUM(Ienesīguma_analīze[[#This Row],[Segmenta nosaukums 1]:[Segmenta nosaukums 3]]) -> 100%
A16: Ievadiet informāciju pārdošanas izmaksas tabulā, kas sākas šūnā pa labi. Nākamais norādījums ir šūnā A23. | B16: Pārdošanas izmaksas: | C16: Segmenta nosaukums 1 | D16: Segmenta nosaukums 2 | E16: Segmenta nosaukums 3 | F16: Kopā
B17: Ikdienas pakalpojumu un atbalsta izmaksas | C17: 1,000,000.00 EUR | D17: 1,400,000.00 EUR | E17: 1,400,000.00 EUR | F17: =SUM(C17:E17) -> 3,800,000.00 EUR
B18: Citas tiešās klientu izmaksas | C18: 200,000.00 EUR | D18: 100,000.00 EUR | E18: 100,000.00 EUR | F18: =SUM(C18:E18) -> 400,000.00 EUR
B19: Kopējās pārdošanas izmaksas | C19: =SUM(C17:C18) -> 1,200,000.00 EUR | D19: =SUM(D17:D18) -> 1,500,000.00 EUR | E19: =SUM(E17:E18) -> 1,500,000.00 EUR | F19: =SUM(F17:F18) -> 4,200,000.00 EUR
B20: Bruto peļņa | C20: =+C13-C19 -> 300,000.00 EUR | D20: =+D13-D19 -> 300,000.00 EUR | E20: =+E13-E19 -> 1,000,000.00 EUR | F20: =+F13-F19 -> 1,600,000.00 EUR
B21: Vērtēšana | C21: =MAX(0, MIN(1,C20/$F$20)) -> 19% | D21: =MAX(0, MIN(1,D20/$F$20)) -> 19% | E21: =MAX(0, MIN(1,E20/$F$20)) -> 63% | F21: =SUM(C21:E21) -> 100%
A23: Tabulā Citas izmaksas, sākot ar šūnu pa labi, ievadiet detalizētu informāciju Nākamais norādījums ir šūnā A31. | B23: Citas izmaksas: | C23: Segmenta nosaukums 1 | D23: Segmenta nosaukums 2 | E23: Segmenta nosaukums 3 | F23: Kopā
B24: Klientu iegūšana | C24: 105,000.00 EUR | D24: 120,000.00 EUR | E24: 235,000.00 EUR | F24: =SUM(Citas_izmaksas[[#This Row],[Segmenta nosaukums 1]:[Segmenta nosaukums 3]]) -> 460,000.00 EUR
B25: Klientu mārketings | C25: 150,000.00 EUR | D25: 125,000.00 EUR | E25: 275,000.00 EUR | F25: =SUM(C25:E25) -> 550,000.00 EUR
B26: Sadarbības ar klientu pārtraukšana | C26: 80,000.00 EUR | D26: 190,000.00 EUR | E26: 140,000.00 EUR | F26: =SUM(C26:E26) -> 410,000.00 EUR
B27: Pārējo klientu izmaksu kopsavilkums | C27: =SUM(C24:C26) -> 335,000.00 EUR | D27: =SUM(D24:D26) -> 435,000.00 EUR | E27: =SUM(E24:E26) -> 650,000.00 EUR | F27: =SUM(F24:F26) -> 1,420,000.00 EUR
B28: Klientu ienesīgums pēc segmenta | C28: =+C20-C27 -> -35,000.00 EUR | D28: =+D20-D27 -> -135,000.00 EUR | E28: =+E20-E27 -> 350,000.00 EUR | F28: =SUM(C28:E28) -> 180,000.00 EUR
B29: Vērtēšana | C29: =MAX(0,MIN(1, C28/$F$28)) -> 0% | D29: =MAX(0,MIN(1, D28/$F$28)) -> 0% | E29: =MAX(0,MIN(1, E28/$F$28)) -> 100% | F29: =SUM(C29:E29) -> 100%
A31: Rādītāju kopsavilkums tabula, kas sākas šūnā pa labi, tiek automātiski atjaunināta. Nākamais norādījums ir šūnā A37. | B31: Rādītāju kopsavilkums: | C31: Segmenta nosaukums 1 | D31: Segmenta nosaukums 2 | E31: Segmenta nosaukums 3 | F31: Tendence
B32: Klienta iegūšanas vidējās izmaksas | C32: =+C24/C8 -> 52,500.00 EUR | D32: =+D24/D8 -> 30,000.00 EUR | E32: =+E24/E8 -> 58,750.00 EUR
B33: Sadarbības ar klientu pārtraukšanas vidējās izmaksas | C33: =-C26/C9 -> 80,000.00 EUR | D33: =-D26/D9 -> 95,000.00 EUR | E33: =-E26/E9 -> 70,000.00 EUR
B34: Vidējās mārketinga izmaksas attiecībā uz aktīvu klientu | C34: =+C26/Klientu_aktivitāte[[#Totals],[Segmenta nosaukums 1]] -> 13,333.33 EUR | D34: =+D25/Klientu_aktivitāte[[#Totals],[Segmenta nosaukums 2]] -> 12,500.00 EUR | E34: =+E25/Klientu_aktivitāte[[#Totals],[Segmenta nosaukums 3]] -> 27,500.00 EUR
B35: Vidējā peļņa (zaudējumi) attiecībā uz vienu klientu | C35: =+C29/Klientu_aktivitāte[[#Totals],[Segmenta nosaukums 1]] -> 0.00 EUR | D35: =+D28/Klientu_aktivitāte[[#Totals],[Segmenta nosaukums 2]] -> -13,500.00 EUR | E35: =+E28/Klientu_aktivitāte[[#Totals],[Segmenta nosaukums 3]] -> 35,000.00 EUR
A37: Sagrupētu stabiņu diagramma ar rādītāju kopsavilkums pēc klientu segmenta ir šūnā pa labi. | B37: Šajā šūnā ir sagrupētu stabiņu diagramma ar rādītāju kopsavilkums pēc klientu segmenta.
